fUST/lending_fUST_20240901
["ID","MTS","AMOUNT","RATE_DAILY","PERIOD"]
[336836934,1725202232078,-300.0,0.0002233,2]
[336836935,1725202232087,-11928.87868079,0.00022331,2]
[336836941,1725202238252,-250.0,0.00021972,2]
[336836942,1725202238262,-250.0,0.00022032,2]
[336836943,1725202238271,-250.0,0.00022092,2]
[336836944,1725202238280,-250.0,0.00022152,2]
[336836945,1725202238289,-250.0,0.00022213,2]
[336836946,1725202238299,-250.0,0.00022273,2]
[336836947,1725202238308,-12971.12131921,0.00022331,2]
[336836948,1725202238317,-250.0,0.00022333,2]
[336836949,1725202238326,-250.0,0.00022393,2]
[336836950,1725202238336,-250.0,0.00022453,2]
[336836951,1725202238346,-250.0,0.00022514,2]
[336836952,1725202238355,-250.0,0.00022574,2]
[336836953,1725202238364,-250.0,0.00022634,2]
[336836954,1725202238373,-250.0,0.00022694,2]
[336836955,1725202238382,-250.0,0.00022755,2]
[336836956,1725202238391,-431.453722,0.00022785,2]
[336836957,1725202238401,-250.0,0.00022815,2]
[336836958,1725202238410,-250.0,0.00022875,2]
[336836959,1725202238422,-250.0,0.00022935,2]
[336836960,1725202238431,-3000.0,0.00023186,2]
[336836961,1725202238441,-189.0,0.00024257,2]
[336836962,1725202238450,-189.914608,0.00024501,2]
[336836963,1725202238459,-2000.0,0.00024557,2]
[336836964,1725202238468,-420.0,0.00024563,2]
[336836965,1725202238478,-150.0,0.00024602,2]
[336836966,1725202238487,-790.68,0.00024637,3]
[336836967,1725202238496,-207.96,0.00024637,3]
[336836968,1725202238506,-623.89,0.00024637,3]
[336836969,1725202238516,-622.68737494,0.00024645,2]
[336836970,1725202238526,-500.0,0.00024645,2]
[336836971,1725202238536,-500.0,0.00024645,2]
[336836973,1725202238545,-500.0,0.00024645,2]
[336836974,1725202238555,-240.0,0.00024645,2]
[336836975,1725202238567,-500.0,0.00024645,2]
[336836976,1725202238577,-172.71847368,0.00024645,2]
[336836977,1725202238586,-500.0,0.00024645,2]
[336836978,1725202238596,-500.0,0.00024645,2]
[336836979,1725202238607,-500.0,0.00024645,2]
[336836980,1725202238616,-500.0,0.00024645,2]
[336836981,1725202238626,-500.0,0.00024645,2]
[336836982,1725202238636,-500.0,0.00024645,2]
[336836983,1725202238648,-500.0,0.00024645,2]
[336836984,1725202238658,-500.0,0.00024645,2]
[336836985,1725202238669,-500.0,0.00024645,2]
[336836986,1725202238679,-500.0,0.00024645,2]
[336836987,1725202238698,-500.0,0.00024645,2]
[336836988,1725202238708,-500.0,0.00024645,2]
[336836989,1725202238719,-500.0,0.00024645,2]
[336836990,1725202238729,-500.0,0.00024645,2]
[336836991,1725202238739,-500.0,0.00024645,2]
[336836992,1725202238748,-500.0,0.00024645,2]
[336836993,1725202238758,-500.0,0.00024645,2]
[336836994,1725202238767,-500.0,0.00024645,2]
[336836995,1725202238777,-500.0,0.00024645,2]
[336836996,1725202238787,-500.0,0.00024645,2]
[336836997,1725202238796,-500.0,0.00024645,2]
[336836998,1725202238807,-500.0,0.00024645,2]
[336836999,1725202238817,-500.0,0.00024645,2]
[336837000,1725202238827,-500.0,0.00024645,2]
[336837001,1725202238837,-500.0,0.00024645,2]
[336837002,1725202238847,-400.0,0.00024645,2]
[336837003,1725202238857,-500.0,0.00024645,2]
[336837004,1725202238867,-500.0,0.00024645,2]
[336837005,1725202238877,-500.0,0.00024645,2]
[336837006,1725202238887,-32261.9948358,0.00024647,3]
[336837007,1725202238896,-500.0,0.00024656,2]
[336837008,1725202238905,-176.78802656,0.00024656,2]
[336837009,1725202238916,-500.0,0.00024656,2]
[336837010,1725202238926,-616.88518121,0.00024656,2]
[336837011,1725202238936,-500.0,0.00024656,2]
[336837012,1725202238946,-300.0,0.00024656,2]
[336837013,1725202238956,-450.0,0.00024656,2]
[336837014,1725202238965,-7167.21313416,0.00024657,11]
[336837015,1725202238976,-509.47967589,0.00024657,2]
[336837016,1725202238986,-500.0,0.00024657,2]
[336837017,1725202238996,-500.0,0.00024657,2]
[336837018,1725202239006,-501.28,0.00024657,2]
[336837019,1725202239016,-500.0,0.00024657,2]
[336837020,1725202239026,-500.0,0.00024657,2]
[336837021,1725202239037,-500.0,0.00024657,2]
[336837022,1725202239047,-500.0,0.00024657,2]
[336837023,1725202239057,-500.0,0.00024657,2]
[336837024,1725202239067,-500.0,0.00024657,2]
[336837025,1725202239077,-500.0,0.00024657,2]
[336837026,1725202239087,-500.0,0.00024657,2]
[336837027,1725202239098,-500.0,0.00024657,2]
[336837028,1725202239108,-502.68892467,0.00024657,2]
[336837029,1725202239118,-500.0,0.00024657,2]
[336837030,1725202239128,-500.0,0.00024657,2]
[336837031,1725202239138,-500.0,0.00024657,2]
[336837032,1725202239148,-500.0,0.00024657,2]
[336837033,1725202239158,-500.0,0.00024657,2]
[336837034,1725202239169,-500.0,0.00024657,2]
[336837035,1725202239178,-500.0,0.00024657,2]
[336837036,1725202239188,-187.85323693,0.00024657,2]
[336837037,1725202239198,-631.07,0.00024657,2]
[336837038,1725202239207,-1043.61,0.00024657,2]
[336837039,1725202239217,-500.0,0.00024657,2]
[336837040,1725202239227,-500.0,0.00024657,2]
[336837041,1725202239237,-500.0,0.00024657,2]
[336837042,1725202239247,-500.0,0.00024657,2]
[336837043,1725202239257,-500.0,0.00024657,2]
[336837044,1725202239267,-500.0,0.00024657,2]
[336837045,1725202239278,-500.0,0.00024657,2]
[336837046,1725202239287,-500.0,0.00024657,2]
[336837047,1725202239297,-640.55426065,0.00024657,2]
[336837048,1725202239311,-207.89046365,0.00024657,2]
[336837049,1725202239321,-800.07,0.00024657,2]
[336837050,1725202239330,-500.0,0.00024657,2]
[336837051,1725202239340,-500.0,0.00024657,2]
[336837052,1725202239350,-500.0,0.00024657,2]
[336837053,1725202239360,-500.0,0.00024657,2]
[336837054,1725202239370,-500.0,0.00024657,2]
[336837055,1725202239379,-500.0,0.00024657,2]
[336837056,1725202239389,-500.0,0.00024657,2]
[336837057,1725202239400,-500.0,0.00024657,2]
[336837058,1725202239409,-500.0,0.00024657,2]
[336837060,1725202239422,-500.0,0.00024657,2]
[336837061,1725202239433,-491.21938583,0.00024657,2]
[336837062,1725202239443,-694.49,0.00024657,2]
[336837063,1725202239453,-589.42841684,0.00024657,2]
[336837064,1725202239462,-500.0,0.00024657,2]
[336837065,1725202239472,-539.66465361,0.00024657,2]
[336837066,1725202239482,-500.0,0.00024657,2]
[336837068,1725202239492,-500.0,0.00024657,2]
[336837069,1725202239501,-770.37,0.00024657,2]
[336837070,1725202239511,-500.0,0.00024657,2]
[336837071,1725202239521,-500.0,0.00024657,2]
[336837072,1725202239531,-500.0,0.00024657,2]
[336837073,1725202239541,-506.13628989,0.00024657,2]
[336837074,1725202239551,-628.98,0.00024657,2]
[336837075,1725202239561,-321.86647654,0.00024657,2]
[336837076,1725202239572,-500.0,0.00024657,2]
[336837077,1725202239583,-500.0,0.00024657,2]
[336837078,1725202239593,-500.0,0.00024657,2]
[336837079,1725202239602,-500.0,0.00024657,2]
[336837081,1725202239814,-539.48640509,0.00024657,2]
[336837083,1725202239825,-500.0,0.00024657,2]
[336837085,1725202239835,-762.95,0.00024657,2]
[336837086,1725202239844,-500.0,0.00024657,2]
[336837087,1725202239854,-500.0,0.00024657,2]
[336837088,1725202239867,-262.95464729,0.00024657,2]
[336837089,1725202239877,-500.0,0.00024657,2]
[336837090,1725202239887,-500.0,0.00024657,2]
[336837091,1725202239897,-500.0,0.00024657,2]
[336837092,1725202239907,-500.0,0.00024657,2]
[336837093,1725202239924,-717.57,0.00024657,2]
[336837094,1725202239934,-502.82497924,0.00024657,2]
[336837095,1725202239944,-500.0,0.00024657,2]
[336837096,1725202239953,-500.0,0.00024657,2]
[336837097,1725202239963,-500.0,0.00024657,2]
[336837098,1725202239972,-1390.02,0.00024657,2]
[336837099,1725202239982,-596.57,0.00024657,2]
[336837100,1725202239991,-616.44956672,0.00024657,2]
[336837102,1725202240001,-500.0,0.00024657,2]
[336837104,1725202240011,-500.0,0.00024657,2]
[336837105,1725202240021,-500.0,0.00024657,2]
[336837106,1725202240031,-500.0,0.00024657,2]
[336837107,1725202240041,-500.0,0.00024657,2]
[336837108,1725202240051,-500.0,0.00024657,2]
[336837110,1725202240060,-500.0,0.00024657,2]
[336837112,1725202240070,-500.0,0.00024657,2]
[336837113,1725202240080,-500.0,0.00024657,2]
[336837114,1725202240090,-500.0,0.00024657,2]
[336837115,1725202240100,-1841.95,0.00024657,2]
[336837116,1725202240110,-500.0,0.00024657,2]
[336837117,1725202240120,-1144.54,0.00024657,2]
[336837118,1725202240130,-500.0,0.00024657,2]
[336837119,1725202240139,-500.0,0.00024657,2]
[336837120,1725202240149,-500.0,0.00024657,2]
[336837121,1725202240159,-500.0,0.00024657,2]
[336837122,1725202240172,-500.0,0.00024657,2]
[336837123,1725202240182,-867.33,0.00024657,2]
[336837124,1725202240192,-439.51236922,0.00024657,2]
[336837125,1725202240201,-500.0,0.00024657,2]
[336837126,1725202240211,-500.0,0.00024657,2]
[336837127,1725202240221,-500.0,0.00024657,2]
[336837128,1725202240230,-692.25,0.00024657,2]
[336837129,1725202240240,-500.0,0.00024657,2]
[336837130,1725202240250,-500.0,0.00024657,2]
[336837131,1725202240259,-500.0,0.00024657,2]
[336837132,1725202240268,-500.0,0.00024657,2]
[336837133,1725202240278,-500.0,0.00024657,2]
[336837134,1725202240288,-500.0,0.00024657,2]
[336837135,1725202240298,-500.0,0.00024657,2]
[336837136,1725202240307,-500.0,0.00024657,2]
[336837137,1725202240317,-500.0,0.00024657,2]
[336837138,1725202240326,-500.0,0.00024657,2]
[336837139,1725202240336,-500.0,0.00024657,2]
[336837140,1725202240345,-500.0,0.00024657,2]
[336837141,1725202240355,-500.0,0.00024657,2]
[336837142,1725202240364,-500.0,0.00024657,2]
[336837143,1725202240375,-500.0,0.00024657,2]
[336837144,1725202240384,-500.0,0.00024657,2]
[336837145,1725202240394,-500.0,0.00024657,2]
[336837146,1725202240404,-500.0,0.00024657,2]
[336837147,1725202240413,-500.0,0.00024657,2]
[336837148,1725202240422,-500.0,0.00024657,2]
[336837149,1725202240432,-554.6,0.00024657,2]
[336837150,1725202240441,-500.0,0.00024657,2]
[336837151,1725202240451,-500.0,0.00024657,2]
[336837152,1725202240461,-500.0,0.00024657,2]
[336837153,1725202240471,-500.0,0.00024657,2]
[336837154,1725202240480,-500.0,0.00024657,2]
[336837155,1725202240490,-500.0,0.00024657,2]
[336837156,1725202240500,-472.47114977,0.00024657,2]
[336837157,1725202240509,-500.0,0.00024657,2]
[336837158,1725202240519,-500.0,0.00024657,2]
[336837159,1725202240528,-463.55958975,0.00024657,2]
[336837160,1725202240538,-5859.02,0.00024657,2]
[336837161,1725202240548,-500.0,0.00024657,2]
[336837162,1725202240557,-500.0,0.00024657,2]
[336837163,1725202240566,-507.71146256,0.00024657,2]
[336837164,1725202240575,-500.0,0.00024657,2]
[336837165,1725202240584,-500.0,0.00024657,2]
[336837166,1725202240595,-500.0,0.00024657,2]
[336837167,1725202240604,-500.0,0.00024657,2]
[336837168,1725202240613,-500.0,0.00024657,2]
[336837169,1725202240622,-500.0,0.00024657,2]
[336837170,1725202240632,-495.6903607,0.00024657,2]
[336837171,1725202240642,-598.72166686,0.00024657,2]
[336837172,1725202240655,-500.0,0.00024657,2]
[336837173,1725202240667,-500.0,0.00024657,2]
[336837174,1725202240676,-500.0,0.00024657,2]
[336837175,1725202240687,-500.0,0.00024657,2]
[336837176,1725202240697,-1460.22,0.00024657,2]
[336837177,1725202240706,-366.56628054,0.00024657,2]
[336837178,1725202240716,-500.0,0.00024657,2]
[336837179,1725202240727,-500.0,0.00024657,2]
[336837180,1725202240737,-500.0,0.00024657,2]
[336837181,1725202240747,-500.0,0.00024657,2]
[336837182,1725202240756,-602.69,0.00024657,2]
[336837183,1725202240766,-500.0,0.00024657,2]
[336837184,1725202240776,-500.0,0.00024657,2]
[336837185,1725202240796,-500.0,0.00024657,2]
[336837186,1725202240806,-500.0,0.00024657,2]
[336837187,1725202240816,-500.0,0.00024657,2]
[336837188,1725202240826,-829.22,0.00024657,2]
[336837189,1725202240836,-500.0,0.00024657,2]
[336837190,1725202240846,-617.7,0.00024657,2]
[336837191,1725202240856,-500.0,0.00024657,2]
[336837192,1725202240867,-1008.96,0.00024657,2]
[336837193,1725202240876,-500.0,0.00024657,2]
[336837194,1725202240886,-500.0,0.00024657,2]
[336837195,1725202240896,-500.0,0.00024657,2]
[336837196,1725202240906,-500.0,0.00024657,2]
[336837197,1725202240921,-500.0,0.00024657,2]
[336837198,1725202240930,-500.0,0.00024657,2]
[336837199,1725202240940,-1051.01,0.00024657,2]
[336837200,1725202240950,-500.0,0.00024657,2]
[336837201,1725202240959,-500.0,0.00024657,2]
[336837202,1725202240969,-500.0,0.00024657,2]
[336837203,1725202240979,-500.0,0.00024657,2]
[336837204,1725202240989,-500.0,0.00024657,2]
[336837205,1725202241000,-500.0,0.00024657,2]
[336837206,1725202241009,-503.0032315,0.00024657,2]
[336837207,1725202241019,-500.0,0.00024657,2]
[336837208,1725202241029,-502.00548169,0.00024657,2]
[336837209,1725202241039,-500.0,0.00024657,2]
[336837210,1725202241049,-500.0,0.00024657,2]
[336837211,1725202241059,-500.0,0.00024657,2]
[336837212,1725202241069,-500.0,0.00024657,2]
[336837213,1725202241079,-500.0,0.00024657,2]
[336837214,1725202241089,-500.0,0.00024657,2]
[336837215,1725202241100,-500.0,0.00024657,2]
[336837216,1725202241110,-500.0,0.00024657,2]
[336837217,1725202241120,-500.0,0.00024657,2]
[336837218,1725202241132,-649.98,0.00024657,2]
[336837219,1725202241142,-500.0,0.00024657,2]
[336837220,1725202241152,-500.0,0.00024657,2]
[336837221,1725202241162,-500.0,0.00024657,2]
[336837222,1725202241173,-500.0,0.00024657,2]
[336837223,1725202241182,-500.0,0.00024657,2]
[336837224,1725202241192,-500.0,0.00024657,2]
[336837225,1725202241201,-484.89234037,0.00024657,2]
[336837226,1725202241211,-500.0,0.00024657,2]
[336837227,1725202241222,-500.0,0.00024657,2]
[336837228,1725202241232,-500.0,0.00024657,2]
[336837229,1725202241241,-500.0,0.00024657,2]
[336837230,1725202241252,-500.0,0.00024657,2]
[336837231,1725202241262,-500.0,0.00024657,2]
[336837232,1725202241272,-500.0,0.00024657,2]
[336837233,1725202241281,-500.0,0.00024657,2]
[336837234,1725202241291,-560.37,0.00024657,2]
[336837235,1725202241301,-648.04,0.00024657,2]
[336837236,1725202241312,-500.0,0.00024657,2]
[336837237,1725202241321,-500.0,0.00024657,2]
[336837238,1725202241332,-500.0,0.00024657,2]
[336837239,1725202241342,-500.0,0.00024657,2]
[336837240,1725202241354,-1102.18,0.00024657,2]
[336837241,1725202241363,-442.38826196,0.00024657,2]
[336837242,1725202241374,-500.0,0.00024657,2]
[336837243,1725202241383,-500.0,0.00024657,2]
[336837244,1725202241392,-500.0,0.00024657,2]
[336837245,1725202241406,-500.0,0.00024657,2]
[336837246,1725202241418,-500.0,0.00024657,2]
[336837247,1725202241427,-503.76070434,0.00024657,2]
[336837248,1725202241437,-500.0,0.00024657,2]
[336837249,1725202241447,-500.0,0.00024657,2]
[336837250,1725202241456,-458.61057164,0.00024657,2]
[336837251,1725202241466,-693.38,0.00024657,2]
[336837252,1725202241476,-500.0,0.00024657,2]
[336837253,1725202241486,-500.0,0.00024657,2]
[336837254,1725202241495,-500.0,0.00024657,2]
[336837255,1725202241505,-2382.21,0.00024657,2]
[336837256,1725202241515,-500.0,0.00024657,2]
[336837257,1725202241525,-500.0,0.00024657,2]
[336837258,1725202241535,-500.0,0.00024657,2]
[336837259,1725202241545,-605.0409309,0.00024657,2]
[336837260,1725202241555,-500.0,0.00024657,2]
[336837261,1725202241565,-621.86,0.00024657,2]
[336837262,1725202241574,-500.0,0.00024657,2]
[336837263,1725202241584,-500.0,0.00024657,2]
[336837264,1725202241594,-500.0,0.00024657,2]
[336837265,1725202241604,-500.0,0.00024657,2]
[336837266,1725202241614,-500.0,0.00024657,2]
[336837267,1725202241624,-500.0,0.00024657,2]
[336837268,1725202241633,-500.0,0.00024657,2]
[336837269,1725202241643,-502.33822911,0.00024657,2]
[336837270,1725202241656,-500.0,0.00024657,2]
[336837271,1725202241667,-1907.89,0.00024657,2]
[336837272,1725202241677,-500.0,0.00024657,2]
[336837273,1725202241687,-1240.34,0.00024657,2]
[336837274,1725202241697,-500.0,0.00024657,2]
[336837275,1725202241707,-635.43686533,0.00024657,2]
[336837276,1725202241717,-500.0,0.00024657,2]
[336837277,1725202241728,-548.93922683,0.00024657,2]
[336837278,1725202241738,-500.0,0.00024657,2]
[336837279,1725202241751,-500.0,0.00024657,2]
[336837280,1725202241762,-500.0,0.00024657,2]
[336837281,1725202241772,-500.0,0.00024657,2]
[336837282,1725202241783,-500.0,0.00024657,2]
[336837283,1725202241793,-501.76369509,0.00024657,2]
[336837284,1725202241803,-500.0,0.00024657,2]
[336837285,1725202241814,-500.0,0.00024657,2]
[336837286,1725202241824,-500.0,0.00024657,2]
[336837287,1725202241834,-500.0,0.00024657,2]
[336837288,1725202241845,-500.0,0.00024657,2]
[336837289,1725202241860,-500.0,0.00024657,2]
[336837290,1725202241872,-500.0,0.00024657,2]
[336837291,1725202241883,-564.65,0.00024657,2]
[336837292,1725202241892,-502.05045916,0.00024657,2]
[336837293,1725202241902,-500.0,0.00024657,2]
[336837294,1725202241913,-500.0,0.00024657,2]
[336837295,1725202241923,-500.0,0.00024657,2]
[336837296,1725202241932,-773.19,0.00024657,2]
[336837297,1725202241942,-500.0,0.00024657,2]
[336837298,1725202241952,-500.0,0.00024657,2]
[336837299,1725202241961,-500.0,0.00024657,2]
[336837300,1725202241971,-560.91,0.00024657,2]
[336837301,1725202241981,-500.0,0.00024657,2]
[336837302,1725202241990,-502.29434108,0.00024657,2]
[336837303,1725202242000,-500.0,0.00024657,2]
[336837304,1725202242010,-500.0,0.00024657,2]
[336837305,1725202242021,-1211.65,0.00024657,2]
[336837306,1725202242030,-500.0,0.00024657,2]
[336837307,1725202242040,-500.0,0.00024657,2]
[336837308,1725202242050,-571.17,0.00024657,2]
[336837309,1725202242061,-500.0,0.00024657,2]
[336837310,1725202242071,-1784.08,0.00024657,2]
[336837311,1725202242082,-500.0,0.00024657,2]
[336837312,1725202242093,-500.0,0.00024657,2]
[336837313,1725202242104,-522.85,0.00024657,2]
[336837314,1725202242116,-812.85,0.00024657,2]
[336837315,1725202242125,-500.0,0.00024657,2]
[336837316,1725202242135,-500.0,0.00024657,2]
[336837317,1725202242144,-614.97,0.00024657,2]
[336837318,1725202242155,-500.0,0.00024657,2]
[336837319,1725202242165,-858.39,0.00024657,2]
[336837320,1725202242175,-1147.46,0.00024657,2]
[336837321,1725202242185,-1145.95,0.00024657,2]
[336837322,1725202242195,-500.0,0.00024657,2]
[336837323,1725202242206,-679.86,0.00024657,2]
[336837324,1725202242215,-500.0,0.00024657,2]
[336837325,1725202242225,-500.0,0.00024657,2]
[336837326,1725202242235,-500.0,0.00024657,2]
[336837327,1725202242244,-632.53,0.00024657,2]
[336837328,1725202242253,-1971.15,0.00024657,2]
[336837329,1725202242263,-500.0,0.00024657,2]
[336837330,1725202242273,-500.0,0.00024657,2]
[336837331,1725202242283,-500.0,0.00024657,2]
[336837332,1725202242292,-500.0,0.00024657,2]
[336837333,1725202242302,-1472.89,0.00024657,2]
[336837334,1725202242312,-500.0,0.00024657,2]
[336837335,1725202242322,-500.0,0.00024657,2]
[336837336,1725202242331,-500.0,0.00024657,2]
[336837337,1725202242341,-500.0,0.00024657,2]
[336837338,1725202242352,-1897.29,0.00024657,2]
[336837339,1725202242362,-907.97,0.00024657,2]
[336837340,1725202242372,-500.0,0.00024657,2]
[336837341,1725202242382,-500.0,0.00024657,2]
[336837342,1725202242392,-500.0,0.00024657,2]
[336837343,1725202242403,-500.0,0.00024657,2]
[336837344,1725202242415,-500.0,0.00024657,2]
[336837345,1725202242426,-2935.95,0.00024657,2]
[336837346,1725202242435,-500.0,0.00024657,2]
[336837347,1725202242445,-500.0,0.00024657,2]
[336837348,1725202242454,-500.0,0.00024657,2]
[336837349,1725202242463,-245.44866498,0.00024657,2]
[336837350,1725202242473,-500.0,0.00024657,2]
[336837351,1725202242483,-977.97,0.00024657,2]
[336837352,1725202242492,-500.0,0.00024657,2]
[336837353,1725202242502,-500.0,0.00024657,2]
[336837354,1725202242511,-500.0,0.00024657,2]
[336837355,1725202242521,-500.0,0.00024657,2]
[336837356,1725202242532,-2650.04,0.00024657,2]
[336837358,1725202242542,-500.0,0.00024657,2]
[336837359,1725202242552,-659.17,0.00024657,2]
[336837360,1725202242563,-500.0,0.00024657,2]
[336837361,1725202242573,-500.0,0.00024657,2]
[336837363,1725202242583,-500.0,0.00024657,2]
[336837364,1725202242593,-500.0,0.00024657,2]
[336837365,1725202242604,-521.55,0.00024657,2]
[336837366,1725202242614,-2810.36,0.00024657,2]
[336837367,1725202242623,-500.0,0.00024657,2]
[336837368,1725202242635,-500.0,0.00024657,2]
[336837369,1725202242651,-500.0,0.00024657,2]
[336837370,1725202242661,-201.88569077,0.00024657,2]
[336837371,1725202242674,-500.0,0.00024657,2]
[336837372,1725202242684,-631.65,0.00024657,2]
[336837373,1725202242696,-2056.73,0.00024657,2]
[336837375,1725202242707,-554.87,0.00024657,2]
[336837378,1725202242717,-2415.14,0.00024657,2]
[336837379,1725202242727,-2969.83,0.00024657,2]
[336837380,1725202242737,-500.0,0.00024657,2]
[336837381,1725202242747,-1117.44,0.00024657,2]
[336837384,1725202242766,-500.0,0.00024657,2]
[336837386,1725202242777,-500.0,0.00024657,2]
[336837387,1725202242787,-500.0,0.00024657,2]
[336837389,1725202242797,-500.0,0.00024657,2]
[336837391,1725202242807,-500.0,0.00024657,2]
[336837393,1725202242818,-500.0,0.00024657,2]
[336837394,1725202242828,-500.0,0.00024657,2]
[336837395,1725202242838,-500.0,0.00024657,2]
[336837396,1725202242848,-500.0,0.00024657,2]
[336837397,1725202242858,-500.0,0.00024657,2]
[336837399,1725202242868,-500.0,0.00024657,2]
[336837401,1725202242878,-500.0,0.00024657,2]
[336837403,1725202242889,-1592.24,0.00024657,2]
[336837404,1725202242899,-3720.55,0.00024657,2]
[336837405,1725202242909,-500.0,0.00024657,2]
[336837406,1725202242923,-500.0,0.00024657,2]
[336837407,1725202242933,-539.79,0.00024657,2]
[336837408,1725202242943,-493.90787111,0.00024657,2]
[336837409,1725202242954,-500.0,0.00024657,2]
[336837410,1725202242964,-500.0,0.00024657,2]
[336837411,1725202242974,-12611.7,0.00024657,2]
[336837412,1725202242984,-763.19,0.00024657,2]
[336837414,1725202242995,-500.0,0.00024657,2]
[336837416,1725202243005,-500.0,0.00024657,2]
[336837417,1725202243014,-500.0,0.00024657,2]
[336837418,1725202243024,-500.0,0.00024657,2]
[336837419,1725202243034,-824.15,0.00024657,2]
[336837420,1725202243044,-506.87810962,0.00024657,2]
[336837421,1725202243054,-988.74,0.00024657,2]
[336837423,1725202243266,-1355.59,0.00024657,2]
[336837424,1725202243276,-2555.53,0.00024657,2]
[336837425,1725202243285,-500.0,0.00024657,2]
[336837426,1725202243295,-667.08,0.00024657,2]
[336837427,1725202243304,-500.0,0.00024657,2]
[336837428,1725202243313,-606.52013561,0.00024657,2]
[336837429,1725202243323,-500.0,0.00024657,2]
[336837430,1725202243332,-2713.22,0.00024657,2]
[336837431,1725202243342,-892.88,0.00024657,2]
[336837432,1725202243351,-500.0,0.00024657,2]
[336837433,1725202243361,-500.0,0.00024657,2]
[336837434,1725202243371,-500.0,0.00024657,2]
[336837435,1725202243381,-1007.47,0.00024657,2]
[336837436,1725202243390,-500.0,0.00024657,2]
[336837437,1725202243400,-500.0,0.00024657,2]
[336837438,1725202243409,-500.0,0.00024657,2]
[336837439,1725202243421,-500.0,0.00024657,2]
[336837440,1725202243430,-501.59859197,0.00024657,2]
[336837441,1725202243440,-500.0,0.00024657,2]
[336837442,1725202243449,-660.9,0.00024657,2]
[336837443,1725202243458,-1076.41,0.00024657,2]
[336837444,1725202243468,-500.0,0.00024657,2]
[336837445,1725202243477,-501.58213849,0.00024657,2]
[336837446,1725202243487,-2129.5,0.00024657,2]
[336837447,1725202243496,-3799.2,0.00024657,2]
[336837448,1725202243507,-504.60701252,0.00024657,2]
[336837449,1725202243518,-954.14,0.00024657,2]
[336837450,1725202243528,-2264.73,0.00024657,2]
[336837451,1725202243538,-500.0,0.00024657,2]
[336837452,1725202243550,-500.0,0.00024657,2]
[336837453,1725202243560,-2459.87,0.00024657,2]
[336837454,1725202243570,-504.9045242,0.00024657,2]
[336837455,1725202243579,-500.0,0.00024657,2]
[336837456,1725202243589,-500.0,0.00024657,2]
[336837457,1725202243598,-500.0,0.00024657,2]
[336837458,1725202243607,-930.72,0.00024657,2]
[336837459,1725202243616,-583.91,0.00024657,2]
[336837460,1725202243627,-500.0,0.00024657,2]
[336837461,1725202243636,-500.0,0.00024657,2]
[336837462,1725202243647,-586.03,0.00024657,2]
[336837463,1725202243657,-559.34,0.00024657,2]
[336837464,1725202243666,-847.81,0.00024657,2]
[336837465,1725202243676,-500.0,0.00024657,2]